[Event "FIDE WCCC G12 2018"]
[Site "Santiago de Compostela"]
[Date "2018.11.10"]
[Round "6"]
[White "Van Foreest, Machteld"]
[Black "Volovich, Julia"]
[Result "1/2-1/2"]
[ECO "C10"]
[WhiteElo "2003"]
[BlackElo "1735"]
[Annotator "NA RC"]
[PlyCount "116"]
[EventDate "2018.11.04"]
[EventType "swiss"]
[EventCountry "ESP"]
[SourceTitle "playchess.com"]
[Source "ChessBase"]
[SourceQuality "1"]
[TimeControl "40/5400+30:1800+30"]

1. e4 {[%emt 0:00:00]} e6 {[%emt 0:00:00]} 2. d4 {[%emt 0:00:00]} d5 {[%emt 0:00:00]} 3. Nd2 {[%emt 0:00:00]} dxe4 {[%emt 0:00:00]} 4. Nxe4 {[%emt 0:00:00]} Nd7 {[%emt 0:00:00]} 5. Nf3 {[%emt 0:00:00]} Ngf6 {[%emt 0:00:00]} 6. Nxf6+ {[%emt 0:00:23]} Nxf6 {[%emt 0:00:00]} 7. g3 {[%emt 0:00:32]} b6 {[%emt 0:00:00] C10: French with 3 Nc3: Unusual Black 3rd moves and 3...dxe4} 8. Bg2 {[%emt 0:01:00] LiveBook: 21 Games} (8. Bb5+ Bd7 9. Be2 Bc6 10. O-O Bd6 11. Ne5 Bxe5 12. dxe5 Qd5 13. Qxd5 Nxd5 14. Rd1 O-O-O 15. Bg5 {1-0 (43) Svidler,P (2753)-Meier,G (2628) Jerusalem 2018}) 8... Bb7 {[%emt 0:00:16]} 9. O-O {[%emt 0:00:41]} Bd6 {[%emt 0:03:04]} 10. b3 {[%emt 0:06:23]} O-O {[%emt 0:03:38]} 11. Bb2 {[%emt 0:03:45]} Qe7 {[%emt 0:08:00]} 12. Qe2 $146 {[%emt 0:01:50]} ({Predecessor:} 12. a3 Rfd8 13. Qe2 Rac8 14. c4 c5 15. Rfd1 Bxf3 16. Bxf3 cxd4 17. Rxd4 {½-½ (26) Makoveev,I (2290)-Latyev,V (2216) Sochi 2018}) 12... Rfd8 {[%emt 0:05:06]} 13. Rad1 {[%emt 0:01:37]} Rac8 {[%emt 0:07:54]} 14. Rfe1 {[%emt 0:02:50]} c5 {[%emt 0:08:14]} 15. c4 {[%emt 0:04:26]} cxd4 {[%emt 0:06:22]} 16. Nxd4 {[%emt 0:03:03]} Bxg2 {[%emt 0:03:15]} 17. Kxg2 {[%emt 0:00:26]} Bb4 {[%emt 0:02:56]} 18. Rf1 {[%emt 0:02:06]} Qb7+ {[%emt 0:01:04]} 19. Qf3 {[%emt 0:05:45]} Qxf3+ {[%emt 0:04:20]} 20. Kxf3 {[%emt 0:00:11]} Rd7 {[%emt 0:06:40]} 21. Ke2 {[%emt 0:07:25]} Rcd8 {[%emt 0:05:09]} 22. Nc6 {[%emt 0:09:26]} Rd2+ {[%emt 0:04:00]} 23. Rxd2 {[%emt 0:01:14]} Rxd2+ {[%emt 0:00:06]} 24. Kf3 {[%emt 0:02:28]} Bc5 {[%emt 0:07:07]} 25. Bxf6 {[%emt 0:02:03]} gxf6 {[%emt 0:00:22]} 26. b4 {[%emt 0:00:07]} Bf8 {[%emt 0:03:58]} 27. Ra1 {[%emt 0:02:54]} Rc2 {[%emt 0:03:26]} 28. c5 {[%emt 0:04:42]} bxc5 {[%emt 0:02:12]} 29. b5 {[%emt 0:00:26]} c4 {[%emt 0:00:49]} 30. Nxa7 {[%emt 0:03:39]} Bc5 {[%emt 0:03:44]} 31. Nc8 {[%emt 0:03:07]} Rxf2+ {[%emt 0:01:06]} 32. Kg4 {[%emt 0:00:39]} Rxh2 {[%emt 0:01:44]} 33. Rb1 {[%emt 0:10:15]} h5+ {[%emt 0:07:04]} 34. Kf4 {[%emt 0:01:02]} Rf2+ {[%emt 0:01:04]} 35. Ke4 {[%emt 0:00:04]} Re2+ {[%emt 0:01:56]} 36. Kf4 {[%emt 0:00:12]} c3 {[%emt 0:01:34]} 37. b6 {[%emt 0:05:40]} c2 {[%emt 0:00:59]} 38. Rh1 {[%emt 0:00:46]} Bxb6 {[%emt 0:00:29]} 39. Nxb6 {[%emt 0:00:08]} Rd2 {[%emt 0:00:03]} 40. Rc1 {[%emt 0:00:00]} Rd6 {[%emt 0:00:00]} 41. Nc8 {[%emt 0:01:17]} Rd4+ {[%emt 0:01:32]} 42. Ke3 {[%emt 0:00:46]} Rc4 {[%emt 0:00:32]} 43. Nd6 {[%emt 0:00:10]} Rc3+ {[%emt 0:00:58]} 44. Kf2 {[%emt 0:00:51]} f5 {[%emt 0:01:50]} 45. Nb5 {[%emt 0:00:34]} Rc5 {[%emt 0:00:17]} 46. Nd4 {[%emt 0:00:08]} Rc4 {[%emt 0:01:03]} 47. Nf3 {[%emt 0:02:47]} Kg7 {[%emt 0:01:36]} 48. Ne1 {[%emt 0:03:40]} h4 {[%emt 0:01:09]} 49. gxh4 {[%emt 0:00:34]} Rxh4 {[%emt 0:00:08]} 50. Nxc2 {[%emt 0:02:14]} Ra4 {[%emt 0:01:10]} 51. a3 {[%emt 0:00:07]} Kf6 {[%emt 0:01:08]} 52. Re1 {[%emt 0:01:40]} f4 {[%emt 0:03:59]} 53. Kf3 {[%emt 0:03:49]} e5 {[%emt 0:02:45]} 54. Kg4 {[%emt 0:00:50]} Rc4 {[%emt 0:06:49]} 55. Nb4 {[%emt 0:08:22]} Ke6 {[%emt 0:03:31]} 56. Nd3 {[%emt 0:02:18]} f6 {[%emt 0:01:47]} 57. Rb1 $11 {[%emt 0:10:46]} f3+ {[%emt 0:03:07]} 58. Kxf3 {[%emt 0:01:01]} e4+ {[%emt 0:00:04] Kxe4 Ke5+} 1/2-1/2

[Event "FIDE WCCC G12 2018"]
[Site "Santiago de Compostela"]
[Date "2018.11.10"]
[Round "6"]
[White "Vicze, Kata"]
[Black "Lobo Pereira, Arami"]
[Result "1/2-1/2"]
[ECO "B90"]
[WhiteElo "1828"]
[BlackElo "1592"]
[Annotator "NA"]
[PlyCount "77"]
[EventDate "2018.11.04"]
[EventType "swiss"]
[EventCountry "ESP"]
[SourceTitle "playchess.com"]
[Source "ChessBase"]
[SourceQuality "1"]
[TimeControl "40/5400+30:1800+30"]

1. e4 {[%emt 0:00:00]} c5 {[%emt 0:00:00]} 2. Nf3 {[%emt 0:00:00]} d6 {[%emt 0:00:09]} 3. d4 {[%emt 0:00:13]} cxd4 {[%emt 0:01:27]} 4. Nxd4 {[%emt 0:01:12]} Nf6 {[%emt 0:00:56]} 5. Nc3 {[%emt 0:00:43]} a6 {[%emt 0:01:04]} 6. f3 {[%emt 0:01:31]} e5 {[%emt 0:01:47]} 7. Nb3 {[%emt 0:00:58]} Be6 {[%emt 0:02:04]} 8. Be3 {[%emt 0:03:33]} h5 {[%emt 0:04:30]} 9. Qd2 {[%emt 0:03:28]} Nbd7 {[%emt 0:02:26]} 10. O-O-O {[%emt 0:02:30]} b5 {[%emt 0:03:19]} 11. Kb1 {[%emt 0:05:08]} Rc8 {[%emt 0:03:39]} 12. Nd5 {[%emt 0:10:22]} Bxd5 {[%emt 0:04:43]} 13. exd5 {[%emt 0:02:15]} Nb6 {[%emt 0:05:32]} 14. Bxb6 {[%emt 0:02:54]} Qxb6 {[%emt 0:02:52]} 15. g3 {[%emt 0:02:50]} g6 {[%emt 0:02:48]} 16. Bh3 {[%emt 0:04:27]} Rc7 {[%emt 0:01:23]} 17. Rhe1 {[%emt 0:01:53]} Bh6 {[%emt 0:03:03]} 18. Qd3 {[%emt 0:02:57]} O-O {[%emt 0:01:59]} 19. Rg1 {[%emt 0:05:06]} Qe3 {[%emt 0:06:45]} 20. Qf1 {[%emt 0:11:22]} Kh7 {[%emt 0:16:14]} 21. Rd3 {[%emt 0:03:32]} Qb6 {[%emt 0:03:11]} 22. g4 {[%emt 0:05:16]} Be3 {[%emt 0:02:19]} 23. Rg2 {[%emt 0:01:52]} Rh8 {[%emt 0:01:15]} 24. Qe1 {[%emt 0:04:29]} Bf4 {[%emt 0:01:03]} 25. gxh5 {[%emt 0:01:39]} Nxh5 {[%emt 0:00:24]} 26. Nd2 {[%emt 0:04:06]} Bxd2 {[%emt 0:00:57]} 27. Rdxd2 {[%emt 0:02:07]} Nf4 {[%emt 0:01:10]} 28. Rg3 {[%emt 0:00:43]} Kg7 {[%emt 0:00:22]} 29. Bf5 {[%emt 0:01:40]} Kf8 {[%emt 0:02:07]} 30. Be4 a5 {[%emt 0:02:58]} 31. Qh1 {[%emt 0:09:16]} Qe3 {[%emt 0:01:39]} 32. Qd1 {[%emt 0:01:06]} b4 {[%emt 0:00:39]} 33. Rg1 {[%emt 0:00:51]} Qc5 {[%emt 0:00:47]} 34. Qf1 {[%emt 0:01:31]} Qb6 {[%emt 0:07:04]} 35. Rh1 {[%emt 0:01:26]} a4 {[%emt 0:00:41]} 36. h4 {[%emt 0:01:47]} a3 {[%emt 0:00:29]} 37. b3 Qe3 38. Qe1 Qb6 39. Qf1 1/2-1/2

[Event "FIDE WCCC G12 2018"]
[Site "Santiago de Compostela"]
[Date "2018.11.10"]
[Round "6"]
[White "Shuqja, Klean"]
[Black "Rueda Nessi, Juana"]
[Result "1-0"]
[ECO "B70"]
[WhiteElo "1798"]
[BlackElo "1642"]
[Annotator "NA"]
[PlyCount "67"]
[EventDate "2018.11.04"]
[EventType "swiss"]
[EventCountry "ESP"]
[SourceTitle "playchess.com"]
[Source "ChessBase"]
[SourceQuality "1"]
[TimeControl "40/5400+30:1800+30"]

1. e4 {[%emt 0:00:00]} c5 {[%emt 0:00:00]} 2. Nf3 {[%emt 0:00:00]} d6 {[%emt 0:00:00]} 3. d4 {[%emt 0:00:00]} cxd4 {[%emt 0:00:00]} 4. Nxd4 {[%emt 0:00:00]} Nf6 {[%emt 0:00:11]} 5. Nc3 {[%emt 0:00:00]} g6 {[%emt 0:00:07]} 6. Be2 {[%emt 0:00:00]} Nc6 {[%emt 0:00:09]} 7. O-O {[%emt 0:00:00]} Bg7 {[%emt 0:00:29]} 8. Nb3 {[%emt 0:00:10]} O-O {[%emt 0:00:11]} 9. Bg5 {[%emt 0:00:11]} a5 {[%emt 0:00:30]} 10. a4 {[%emt 0:00:25]} Be6 {[%emt 0:00:29]} 11. f4 {[%emt 0:01:25]} Bxb3 {[%emt 0:01:20]} 12. cxb3 {[%emt 0:00:03]} Nd7 {[%emt 0:06:13]} 13. Bc4 {[%emt 0:15:39]} Nc5 {[%emt 0:06:26]} 14. Re1 {[%emt 0:02:27]} Ne6 {[%emt 0:04:40]} 15. Qd2 {[%emt 0:37:21]} Nxg5 {[%emt 0:01:43]} 16. fxg5 {[%emt 0:00:02]} Be5 {[%emt 0:32:09]} 17. Rf1 {[%emt 0:05:54]} e6 {[%emt 0:02:55]} 18. Nb5 {[%emt 0:02:52]} Qb6+ {[%emt 0:01:21]} 19. Kh1 {[%emt 0:00:10]} Rad8 {[%emt 0:00:38]} 20. Rad1 {[%emt 0:05:53]} Nb4 {[%emt 0:03:01]} 21. Qe2 {[%emt 0:02:17]} Rd7 {[%emt 0:08:54]} 22. Rf3 {[%emt 0:02:44]} Rfd8 {[%emt 0:03:15]} 23. Rh3 {[%emt 0:02:40]} Na6 {[%emt 0:11:37]} 24. Qg4 {[%emt 0:05:27]} Kg7 {[%emt 0:03:28]} 25. Qh4 {[%emt 0:02:56]} Rh8 {[%emt 0:00:32]} 26. Rf1 {[%emt 0:03:03]} h5 {[%emt 0:00:53]} 27. gxh6+ {[%emt 0:00:50]} Kh7 {[%emt 0:00:25]} 28. Rhf3 {[%emt 0:00:46]} Rf8 {[%emt 0:00:05]} 29. Bxe6 {[%emt 0:00:34]} fxe6 {[%emt 0:05:14]} 30. Rxf8 {[%emt 0:00:12]} Qc5 {[%emt 0:03:06]} 31. Qg5 {[%emt 0:02:21]} Bxb2 {[%emt 0:02:30]} 32. R1f7+ {[%emt 0:00:33]} Rxf7 {[%emt 0:00:17]} 33. Rxf7+ {[%emt 0:00:02]} Kg8 {[%emt 0:00:20]} 34. Qxg6+ {[%emt 0:00:10]} 1-0

[Event "FIDE WCCC G12 2018"]
[Site "Santiago de Compostela"]
[Date "2018.11.10"]
[Round "6"]
[White "Zvereva, Margarita"]
[Black "Zavivaeva, Emilia"]
[Result "1-0"]
[ECO "B01"]
[WhiteElo "1787"]
[BlackElo "1633"]
[Annotator "NA"]
[PlyCount "75"]
[EventDate "2018.11.04"]
[EventType "swiss"]
[EventCountry "ESP"]
[SourceTitle "playchess.com"]
[Source "ChessBase"]
[SourceQuality "1"]
[TimeControl "40/5400+30:1800+30"]

1. e4 {[%emt 0:00:00]} d5 {[%emt 0:00:00]} 2. exd5 {[%emt 0:00:00]} Qxd5 {[%emt 0:00:03]} 3. Nc3 {[%emt 0:00:00]} Qd6 {[%emt 0:00:07]} 4. d4 {[%emt 0:00:19]} Nf6 {[%emt 0:00:13]} 5. Nf3 {[%emt 0:01:06]} g6 {[%emt 0:00:14]} 6. Nb5 {[%emt 0:00:48]} Qd8 {[%emt 0:01:13]} 7. Na3 {[%emt 0:05:00]} Bg7 {[%emt 0:01:34]} 8. c3 {[%emt 0:00:22]} O-O {[%emt 0:00:15]} 9. Be2 {[%emt 0:02:08]} a6 {[%emt 0:01:07]} 10. Nc4 {[%emt 0:14:04]} Nbd7 {[%emt 0:14:44]} 11. a4 {[%emt 0:02:25]} b6 {[%emt 0:01:08]} 12. O-O {[%emt 0:04:18]} Bb7 {[%emt 0:02:34]} 13. Nce5 {[%emt 0:05:59]} Nxe5 {[%emt 0:02:13]} 14. Nxe5 {[%emt 0:00:16]} Nd7 {[%emt 0:04:14]} 15. Nxd7 {[%emt 0:11:59]} Qxd7 {[%emt 0:00:14]} 16. Bf4 {[%emt 0:05:32]} Rad8 {[%emt 0:10:04]} 17. Qc1 {[%emt 0:02:35]} Qf5 {[%emt 0:07:17]} 18. Bxc7 {[%emt 0:13:11]} Rc8 {[%emt 0:06:04]} 19. Bg3 {[%emt 0:02:06]} Bxd4 {[%emt 0:02:46]} 20. Qd1 {[%emt 0:01:36]} Bc5 {[%emt 0:19:30]} 21. Bg4 {[%emt 0:01:00]} Qf6 {[%emt 0:00:50]} 22. Bxc8 {[%emt 0:00:34]} Bxc8 {[%emt 0:04:33]} 23. b4 {[%emt 0:03:28]} Bd6 {[%emt 0:01:26]} 24. Bxd6 {[%emt 0:00:17]} exd6 {[%emt 0:00:17]} 25. Qd3 {[%emt 0:03:11]} Bb7 {[%emt 0:04:19]} 26. Qe3 {[%emt 0:02:09]} Qf5 {[%emt 0:05:00]} 27. f3 {[%emt 0:01:23]} b5 {[%emt 0:00:35]} 28. axb5 {[%emt 0:01:04]} axb5 {[%emt 0:00:08]} 29. Qb6 {[%emt 0:02:31]} Bc8 {[%emt 0:02:26]} 30. Qxd6 {[%emt 0:00:49]} Be6 {[%emt 0:00:28]} 31. Qd4 {[%emt 0:07:05]} Bc4 {[%emt 0:02:41]} 32. Rfd1 {[%emt 0:01:28]} Re8 {[%emt 0:03:04]} 33. Re1 {[%emt 0:03:01]} Rf8 {[%emt 0:02:18]} 34. Re3 {[%emt 0:02:06]} Qc8 {[%emt 0:01:48]} 35. Rae1 {[%emt 0:01:01]} Qc6 {[%emt 0:01:23]} 36. Re7 {[%emt 0:01:42]} Be6 {[%emt 0:00:36]} 37. R1xe6 {[%emt 0:00:33]} Qxe6 {[%emt 0:00:33]} 38. Rxe6 {[%emt 0:00:06]} 1-0

[Event "FIDE WCCC G12 2018"]
[Site "Santiago de Compostela"]
[Date "2018.11.10"]
[Round "6"]
[White "Munkhzul, Davaakhuu"]
[Black "Alimova, Dana"]
[Result "1/2-1/2"]
[ECO "C03"]
[WhiteElo "1781"]
[BlackElo "1628"]
[Annotator "NA RC"]
[PlyCount "154"]
[EventDate "2018.11.04"]
[EventType "swiss"]
[EventCountry "ESP"]
[SourceTitle "playchess.com"]
[Source "ChessBase"]
[SourceQuality "1"]
[TimeControl "40/5400+30:1800+30"]

1. e4 {[%emt 0:00:00]} e6 {[%emt 0:00:00]} 2. d4 {[%emt 0:00:00]} d5 {[%emt 0:00:00]} 3. Nd2 {[%emt 0:00:00]} a6 {[%emt 0:00:00]} 4. c3 {[%emt 0:00:56]} c5 {[%emt 0:00:00]} 5. Ngf3 {[%emt 0:01:25]} Nc6 {[%emt 0:00:21]} 6. Bd3 {[%emt 0:00:48]} Nf6 {[%emt 0:00:17]} 7. O-O {[%emt 0:03:09]} Be7 {[%emt 0:08:10]} 8. exd5 {[%emt 0:03:10]} Nxd5 {[%emt 0:08:14]} 9. dxc5 {[%emt 0:04:11]} Bxc5 {[%emt 0:00:47]} 10. Ne4 {[%emt 0:00:26]} Be7 {[%emt 0:02:29]} 11. Bb1 {[%emt 0:05:56]} h6 {[%emt 0:24:12]} 12. Qe2 {[%emt 0:03:12]} O-O {[%emt 0:04:20]} 13. c4 {[%emt 0:04:35]} Nb6 {[%emt 0:21:28]} 14. Rd1 {[%emt 0:03:30]} Qc7 {[%emt 0:05:09]} 15. Ng3 {[%emt 0:10:59]} e5 {[%emt 0:07:20]} 16. c5 {[%emt 0:03:07]} Nd7 {[%emt 0:02:32]} 17. Qc2 {[%emt 0:03:30]} Nf6 {[%emt 0:01:29]} 18. Nh5 {[%emt 0:03:31]} Rd8 {[%emt 0:03:36]} 19. Re1 {[%emt 0:07:48]} Bg4 {[%emt 0:02:49]} 20. Nxf6+ {[%emt 0:00:23]} Bxf6 {[%emt 0:00:15]} 21. Nd2 {[%emt 0:01:00]} Nd4 {[%emt 0:01:28]} 22. Qc4 {[%emt 0:05:26]} Rac8 {[%emt 0:04:08]} 23. Ne4 {[%emt 0:03:18]} Be7 {[%emt 0:00:24]} 24. b4 {[%emt 0:04:05]} b5 {[%emt 0:01:18]} 25. Qf1 {[%emt 0:00:47]} f5 {[%emt 0:01:07]} 26. Nc3 {[%emt 0:01:44]} f4 {[%emt 0:00:32]} 27. f3 {[%emt 0:02:39]} Be6 {[%emt 0:00:26]} 28. Kh1 {[%emt 0:05:00]} Bh4 {[%emt 0:00:36]} 29. Rd1 {[%emt 0:00:17]} Bc4 {[%emt 0:00:29]} 30. Bd3 {[%emt 0:00:04]} Bxd3 {[%emt 0:00:25]} 31. Rxd3 {[%emt 0:00:02]} Nc2 {[%emt 0:00:37]} 32. Rb1 {[%emt 0:01:01]} Qf7 {[%emt 0:00:21]} 33. Rd2 {[%emt 0:03:52]} Nd4 {[%emt 0:00:25]} 34. Ne4 {[%emt 0:01:05]} Qh5 {[%emt 0:00:38]} 35. Bb2 {[%emt 0:05:44]} Nf5 {[%emt 0:00:34]} 36. Rxd8+ {[%emt 0:05:21]} Rxd8 {[%emt 0:00:05]} 37. Kg1 {[%emt 0:00:12]} Ne3 {[%emt 0:00:47]} 38. Qe2 {[%emt 0:00:28]} Qf5 {[%emt 0:00:35]} 39. Rc1 {[%emt 0:01:23]} Nc4 {[%emt 0:00:35]} 40. a4 {[%emt 0:00:00]} Qd7 {[%emt 0:00:00]} 41. Bc3 {[%emt 0:15:07]} Qd5 {[%emt 0:07:56]} 42. axb5 {[%emt 0:01:44]} axb5 {[%emt 0:00:18]} 43. g3 {[%emt 0:01:11]} Bg5 {[%emt 0:05:41]} 44. h4 {[%emt 0:01:48]} Be7 {[%emt 0:01:21]} 45. gxf4 {[%emt 0:03:03]} Bxh4 {[%emt 0:04:17]} 46. fxe5 {[%emt 0:01:08]} Qf7 {[%emt 0:06:09]} 47. Nd6 {[%emt 0:01:18]} Qf4 {[%emt 0:02:02]} 48. Ra1 {[%emt 0:09:19]} Ne3 {[%emt 0:03:20]} 49. Ne4 {[%emt 0:03:47]} Nf5 {[%emt 0:03:37]} 50. e6 {[%emt 0:01:57]} Be7 {[%emt 0:00:47]} 51. Qg2 {[%emt 0:00:28]} Qe3+ {[%emt 0:00:24]} 52. Kh1 {[%emt 0:00:05]} h5 {[%emt 0:00:37]} 53. Bd2 {[%emt 0:00:32]} Qd4 {[%emt 0:00:22]} 54. Rg1 {[%emt 0:00:06]} Bf8 {[%emt 0:00:39]} 55. Bc3 {[%emt 0:00:10]} Qd3 {[%emt 0:00:31]} 56. e7 {[%emt 0:00:41]} Bxe7 {[%emt 0:00:13]} 57. Bxg7 {[%emt 0:00:08]} Nh4 {[%emt 0:00:10]} 58. Qg3 {[%emt 0:01:43]} Qxf3+ {[%emt 0:00:32]} 59. Qxf3 {[%emt 0:00:09]} Nxf3 {[%emt 0:00:05]} 60. Rg3 {[%emt 0:00:50]} Rd1+ {[%emt 0:00:27]} 61. Kg2 {[%emt 0:00:01]} Nh4+ {[%emt 0:00:27]} 62. Kh2 {[%emt 0:01:09]} Nf5 {[%emt 0:00:11]} 63. Bc3+ {[%emt 0:00:31]} Nxg3 {[%emt 0:00:14]} 64. Kxg3 {[%emt 0:00:02]} h4+ {[%emt 0:00:25]} 65. Kh2 {[%emt 0:00:11]} Rd3 {[%emt 0:00:41]} 66. c6 {[%emt 0:01:08]} Bd8 {[%emt 0:01:11]} 67. Be5 {[%emt 0:00:39]} Re3 {[%emt 0:00:33]} 68. Nf6+ {[%emt 0:00:15]} Kf7 {[%emt 0:01:10]} 69. Nd7 {[%emt 0:00:10]} Rxe5 {[%emt 0:00:15]} 70. Nxe5+ {[%emt 0:00:08]} Ke6 {[%emt 0:00:08]} 71. Nf3 {[%emt 0:00:28]} Kd5 {[%emt 0:00:15]} 72. Kh3 {[%emt 0:00:48]} Kc4 {[%emt 0:01:24]} 73. Kg4 {[%emt 0:00:13]} Bb6 {[%emt 0:00:36]} 74. Kxh4 {[%emt 0:00:44]} Kxb4 {[%emt 0:00:08]} 75. Nd4 {[%emt 0:00:26]} Kc4 {[%emt 0:00:37]} 76. Nxb5 {[%emt 0:00:06]} Kxb5 {[%emt 0:00:05]} 77. c7 {[%emt 0:00:04]} Bxc7 {[%emt 0:00:03]} 1/2-1/2

[Event "FIDE WCCC G12 2018"]
[Site "Santiago de Compostela"]
[Date "2018.11.10"]
[Round "6"]
[White "Nurmanova, Alua"]
[Black "Mamardashvili, Ana"]
[Result "1-0"]
[ECO "B77"]
[WhiteElo "1780"]
[BlackElo "1527"]
[Annotator "NA"]
[PlyCount "89"]
[EventDate "2018.11.04"]
[EventType "swiss"]
[EventCountry "ESP"]
[SourceTitle "playchess.com"]
[Source "ChessBase"]
[SourceQuality "1"]
[TimeControl "40/5400+30:1800+30"]

1. e4 {[%emt 0:00:00]} c5 {[%emt 0:00:00]} 2. Nf3 {[%emt 0:00:00]} d6 {[%emt 0:00:00]} 3. d4 {[%emt 0:00:00]} cxd4 {[%emt 0:00:00]} 4. Nxd4 {[%emt 0:00:03]} Nf6 {[%emt 0:00:05]} 5. Nc3 {[%emt 0:00:13]} g6 {[%emt 0:00:16]} 6. Be3 {[%emt 0:00:43]} Bg7 {[%emt 0:00:13]} 7. f3 {[%emt 0:00:15]} O-O {[%emt 0:00:19]} 8. Qd2 {[%emt 0:00:36]} Nc6 {[%emt 0:00:19]} 9. Bc4 {[%emt 0:00:58]} Bd7 {[%emt 0:00:18]} 10. h4 {[%emt 0:03:07]} h5 {[%emt 0:02:05]} 11. Bb3 {[%emt 0:03:22]} a6 {[%emt 0:05:01]} 12. O-O-O {[%emt 0:07:27]} Rc8 {[%emt 0:02:52]} 13. Nde2 {[%emt 0:12:06]} Ne5 {[%emt 0:07:04]} 14. Bg5 {[%emt 0:06:06]} Rc5 {[%emt 0:04:37]} 15. Nf4 {[%emt 0:15:30]} b5 {[%emt 0:07:18]} 16. Ncd5 {[%emt 0:09:19]} a5 {[%emt 0:17:00]} 17. Bxf6 {[%emt 0:11:09]} exf6 {[%emt 0:00:16]} 18. Ne3 {[%emt 0:04:26]} Bh6 {[%emt 0:05:39]} 19. Nd3 {[%emt 0:04:23]} Nxd3+ {[%emt 0:02:01]} 20. Qxd3 {[%emt 0:00:02]} a4 {[%emt 0:01:32]} 21. Bd5 {[%emt 0:00:23]} Qc7 {[%emt 0:05:39]} 22. Kb1 {[%emt 0:02:52]} Bxe3 {[%emt 0:08:37]} 23. Qxe3 {[%emt 0:00:05]} Rxc2 {[%emt 0:00:46]} 24. Qh6 {[%emt 0:01:15]} Rxg2 {[%emt 0:00:46]} 25. Rd2 {[%emt 0:00:42]} Rg3 {[%emt 0:02:44]} 26. Qf4 {[%emt 0:03:40]} Rh3 {[%emt 0:03:28]} 27. Rxh3 {[%emt 0:01:47]} Bxh3 {[%emt 0:00:05]} 28. Qxf6 {[%emt 0:02:48]} Kh7 {[%emt 0:01:25]} 29. Rc2 {[%emt 0:01:17]} Qd8 {[%emt 0:06:56]} 30. Qxd8 {[%emt 0:00:32]} Rxd8 {[%emt 0:00:04]} 31. Bxf7 {[%emt 0:01:33]} Rc8 {[%emt 0:01:02]} 32. Rxc8 {[%emt 0:01:46]} Bxc8 {[%emt 0:00:04]} 33. Be8 {[%emt 0:00:07]} Ba6 {[%emt 0:01:21]} 34. Kc2 {[%emt 0:00:11]} Kg7 {[%emt 0:01:23]} 35. Kc3 {[%emt 0:00:59]} Kf6 {[%emt 0:01:01]} 36. f4 {[%emt 0:00:46]} Bb7 {[%emt 0:02:38]} 37. Kd4 {[%emt 0:00:12]} Ba6 {[%emt 0:04:06]} 38. a3 {[%emt 0:00:32]} Kg7 {[%emt 0:02:01]} 39. Kd5 {[%emt 0:00:27]} Bb7+ {[%emt 0:00:51]} 40. Bc6 {[%emt 0:00:00]} Bc8 {[%emt 0:00:00]} 41. Kxd6 {[%emt 0:00:28]} Kf7 {[%emt 0:02:10]} 42. Bxb5 {[%emt 0:00:16]} Bg4 {[%emt 0:01:07]} 43. e5 {[%emt 0:00:24]} g5 {[%emt 0:01:07]} 44. fxg5 {[%emt 0:00:31]} Bf5 {[%emt 0:00:37]} 45. Bd7 {[%emt 0:00:14]} 1-0

[Event "FIDE WCCC G12 2018"]
[Site "Santiago de Compostela"]
[Date "2018.11.10"]
[Round "6"]
[White "Butenandt, Svenja"]
[Black "Wagner, Margarethe"]
[Result "0-1"]
[ECO "E14"]
[WhiteElo "1775"]
[BlackElo "1766"]
[Annotator "NA RC"]
[PlyCount "98"]
[EventDate "2018.11.04"]
[EventType "swiss"]
[EventCountry "ESP"]
[SourceTitle "playchess.com"]
[Source "ChessBase"]
[SourceQuality "1"]
[TimeControl "40/5400+30:1800+30"]

1. Nf3 {[%emt 0:00:00]} Nf6 {[%emt 0:00:00]} 2. c4 {[%emt 0:00:00]} e6 {[%emt 0:01:23]} 3. d4 {[%emt 0:00:37]} b6 {[%emt 0:02:43]} 4. e3 {[%emt 0:02:02]} Bb7 {[%emt 0:02:28]} 5. Bd3 {[%emt 0:00:38]} Bb4+ {[%emt 0:04:14]} 6. Bd2 {[%emt 0:03:18]} Bxd2+ {[%emt 0:01:51]} 7. Qxd2 {[%emt 0:00:46]} d6 {[%emt 0:04:37]} 8. Nc3 {[%emt 0:01:42]} Nbd7 {[%emt 0:02:19]} 9. e4 {[%emt 0:05:05]} e5 {[%emt 0:05:04]} 10. d5 {[%emt 0:08:08]} a6 {[%emt 0:07:46]} 11. O-O {[%emt 0:04:36]} h6 {[%emt 0:01:51]} 12. b4 {[%emt 0:04:31]} Bc8 {[%emt 0:04:04]} 13. Rfe1 {[%emt 0:02:43]} Nh5 {[%emt 0:03:49]} 14. g3 {[%emt 0:03:28]} g5 {[%emt 0:05:21]} 15. Bf1 {[%emt 0:07:15]} Nf8 {[%emt 0:03:31]} 16. Qd1 {[%emt 0:08:54]} Ng7 {[%emt 0:02:11]} 17. Rc1 {[%emt 0:12:49]} Ng6 {[%emt 0:06:33]} 18. c5 {[%emt 0:09:12]} Rb8 {[%emt 0:10:37]} 19. Qa4+ {[%emt 0:05:41]} b5 {[%emt 0:02:19]} 20. Qa5 {[%emt 0:01:46]} O-O {[%emt 0:02:05]} 21. cxd6 {[%emt 0:00:43]} cxd6 {[%emt 0:00:32]} 22. Qxd8 {[%emt 0:00:32]} Rxd8 {[%emt 0:00:04]} 23. Nd2 {[%emt 0:00:54]} f5 {[%emt 0:01:15]} 24. f3 {[%emt 0:01:33]} fxe4 {[%emt 0:01:51]} 25. fxe4 {[%emt 0:00:18]} Rf8 {[%emt 0:01:01]} 26. Nd1 {[%emt 0:02:09]} Ne8 {[%emt 0:03:49]} 27. Nb3 {[%emt 0:01:48]} Nf6 {[%emt 0:02:33]} 28. Na5 {[%emt 0:00:50]} Ne7 {[%emt 0:01:49]} 29. Nf2 {[%emt 0:00:58]} h5 {[%emt 0:03:12]} 30. Red1 {[%emt 0:01:37]} Bd7 {[%emt 0:04:02]} 31. Rc7 {[%emt 0:01:41]} Rfc8 {[%emt 0:00:39]} 32. Rdc1 {[%emt 0:00:48]} Rxc7 {[%emt 0:00:17]} 33. Rxc7 {[%emt 0:00:05]} Kf8 {[%emt 0:01:00]} 34. Be2 {[%emt 0:01:30]} g4 {[%emt 0:00:29]} 35. Bd3 {[%emt 0:03:43]} Ke8 {[%emt 0:01:18]} 36. Nb7 {[%emt 0:01:17]} Nc8 {[%emt 0:00:53]} 37. Nd1 {[%emt 0:00:55]} Nh7 {[%emt 0:03:24]} 38. Nc3 {[%emt 0:02:27]} Ng5 {[%emt 0:01:18]} 39. Be2 {[%emt 0:00:52]} Nf7 {[%emt 0:01:32]} 40. Kg2 {[%emt 0:00:00]} Nb6 {[%emt 0:00:00]} 41. Nd1 {[%emt 0:07:58]} Na8 {[%emt 0:05:10]} 42. Rxd7 {[%emt 0:01:39]} Kxd7 {[%emt 0:00:52]} 43. Na5 {[%emt 0:00:05]} Ng5 {[%emt 0:02:33]} 44. Nf2 {[%emt 0:00:24]} Nb6 {[%emt 0:02:05]} 45. Nc6 {[%emt 0:00:23]} Rf8 {[%emt 0:00:34]} 46. Na5 {[%emt 0:00:58]} Na4 {[%emt 0:01:01]} 47. Bd3 {[%emt 0:01:15]} Nc3 {[%emt 0:02:16]} 48. a3 {[%emt 0:00:06]} Nf3 {[%emt 0:00:48]} 49. Bf1 {[%emt 0:03:06]} Nxh2 {[%emt 0:01:22]} 0-1